bitfinex-derivatives/quotes_BTCF0:USTF0_20250901
["timestamp","ask_amount","ask_price","bid_price","bid_amount"]
[1756695056501,0.68979002,107550.0,107540.0,0.363]
[1756695056703,0.68979002,107550.0,107540.0,0.013]
[1756695057006,0.3429663,107550.0,107540.0,0.013]
[1756695057201,0.36616379,107550.0,107540.0,0.313]
[1756695057404,0.3439663,107550.0,107540.0,0.312]
[1756695057599,0.3671583,107550.0,107540.0,0.312]
[1756695057799,0.3671583,107550.0,107540.0,0.31]
[1756695058003,0.3681583,107550.0,107540.0,0.31]
[1756695058403,0.3449663,107550.0,107540.0,0.31]
[1756695059307,0.0949663,107550.0,107540.0,0.31]
[1756695059808,0.0929749,107540.0,107530.0,0.72842702]
[1756695060008,0.9952549,107540.0,107530.0,1.10842702]
[1756695060402,0.0929749,107540.0,107530.0,0.7616033]
[1756695060701,0.0929749,107540.0,107530.0,1.11306702]
[1756695060913,0.9949349,107540.0,107530.0,1.11306702]
[1756695061206,0.9949349,107540.0,107530.0,1.11406702]
[1756695062502,0.9949349,107540.0,107530.0,0.7672433]
[1756695062705,0.9949349,107540.0,107530.0,1.11406702]
[1756695062898,0.0929749,107540.0,107530.0,1.11406702]
[1756695063103,0.9940949,107540.0,107530.0,1.11406702]
[1756695064811,0.9936549,107540.0,107530.0,1.11406702]
[1756695065807,0.9936549,107540.0,107530.0,0.7672433]
[1756695066105,0.9936549,107540.0,107530.0,1.11406702]
[1756695067603,0.9929749,107540.0,107530.0,1.11406702]
[1756695067803,0.0929749,107540.0,107530.0,1.11406702]
[1756695068111,0.0929749,107540.0,107530.0,1.45705082]
[1756695069605,0.0929749,107540.0,107530.0,1.36406702]
[1756695071714,0.0929749,107540.0,107530.0,1.11406702]
[1756695071909,0.0929749,107540.0,107530.0,0.74644]
[1756695072114,0.3429749,107540.0,107530.0,0.74644]
[1756695074114,1.2416949,107540.0,107530.0,0.74644]
[1756695074314,1.2416949,107540.0,107530.0,1.09326372]
[1756695074817,1.2416949,107540.0,107530.0,0.74644]
[1756695076119,0.0929749,107540.0,107530.0,1.09326372]
[1756695076315,0.9908549,107540.0,107530.0,1.09326372]
[1756695077518,0.9908549,107540.0,107530.0,0.74644]
[1756695078213,0.9908549,107540.0,107530.0,1.09326372]
[1756695078913,0.9908549,107540.0,107530.0,0.74644]
[1756695080918,1.2408549,107540.0,107530.0,0.74644]
[1756695082828,1.2395349,107540.0,107530.0,1.02398823]
[1756695085116,1.2395349,107540.0,107530.0,0.74644]
[1756695085320,1.2395349,107540.0,107530.0,0.38564]
[1756695085712,1.2395349,107540.0,107530.0,0.74644]
[1756695085912,1.2395349,107540.0,107530.0,0.38564]
[1756695086118,0.9895349,107540.0,107530.0,0.3617838]
[1756695086319,1.29021015,107540.0,107530.0,0.3617838]
[1756695086519,1.01266192,107540.0,107530.0,0.3617838]
[1756695086722,0.9895349,107540.0,107530.0,0.7225838]
[1756695087022,1.01266071,107540.0,107530.0,0.3617838]
[1756695087218,1.01366071,107540.0,107530.0,0.3617838]
[1756695087924,1.01170071,107540.0,107530.0,1.00013203]
[1756695088320,0.9895749,107540.0,107530.0,0.99913203]
[1756695090118,0.9895749,107540.0,107530.0,0.7215838]
[1756695090324,1.26712313,107540.0,107530.0,0.31464]
[1756695090520,1.29025051,107540.0,107530.0,0.31464]
[1756695091024,1.01270228,107540.0,107530.0,0.31464]
[1756695091625,0.0929838,107530.0,107520.0,0.3608]
[1756695091826,0.0929838,107530.0,107520.0,0.7208]
[1756695092022,0.37053203,107530.0,107510.0,0.63834823]
[1756695092227,0.8934,107520.0,107510.0,0.7008]
[1756695092626,0.8934,107520.0,107510.0,0.97834823]
[1756695094131,0.37053203,107530.0,107510.0,0.97834823]
[1756695094132,0.0929838,107530.0,107510.0,0.97834823]
[1756695094337,0.0929838,107530.0,107520.0,0.63834823]
[1756695094536,0.0929838,107530.0,107520.0,0.98834823]
[1756695094725,0.9854638,107530.0,107520.0,0.98834823]
[1756695095423,0.9855438,107530.0,107520.0,0.98834823]
[1756695095619,0.9855438,107530.0,107520.0,0.35]
[1756695095830,1.00866246,107530.0,107520.0,0.35]
[1756695096225,1.28621069,107530.0,107520.0,0.35]
[1756695096429,1.28621069,107530.0,107510.0,0.63834823]
[1756695096728,1.64701069,107530.0,107510.0,1.00834823]
[1756695097418,1.64701069,107530.0,107510.0,1.02901656]
[1756695099522,1.64701069,107530.0,107510.0,0.75146833]
[1756695099734,0.0929924,107520.0,107510.0,0.75146833]
[1756695100323,0.0929924,107520.0,107510.0,1.02901656]
[1756695100528,0.0929924,107520.0,107510.0,0.75146833]
[1756695102026,0.9854324,107520.0,107510.0,0.75146833]
[1756695102425,0.9854324,107520.0,107510.0,1.02901656]
[1756695102734,0.9851524,107520.0,107510.0,1.02901656]
[1756695103522,0.9851524,107520.0,107510.0,0.38146833]
[1756695103724,0.9851524,107520.0,107510.0,1.00901656]
[1756695103929,0.9846724,107520.0,107510.0,1.00901656]
[1756695105036,0.9846724,107520.0,107510.0,0.73146833]
[1756695105237,0.9846724,107520.0,107510.0,0.99901656]
[1756695106137,1.26222063,107520.0,107510.0,0.38146833]
[1756695106429,2.17367654,107520.0,107500.0,0.01]
[1756695106634,0.88834823,107510.0,107500.0,0.01]
[1756695106835,0.91145294,107510.0,107500.0,0.01]
[1756695107035,1.80421294,107510.0,107500.0,0.01]
[1756695107224,0.91145294,107510.0,107500.0,0.01]
[1756695107427,1.80381294,107510.0,107500.0,0.01]
[1756695107633,1.27626471,107510.0,107500.0,0.01]
[1756695107932,1.55381294,107510.0,107500.0,0.34]
[1756695108132,1.55369294,107510.0,107500.0,0.01]
[1756695108437,1.55369294,107510.0,107500.0,0.35]
[1756695109036,1.55345294,107510.0,107500.0,0.35]
[1756695109630,0.30065294,107510.0,107500.0,0.35]
[1756695109831,0.27310471,107510.0,107500.0,0.35]
[1756695110027,0.91474471,107510.0,107500.0,0.62754823]
[1756695110241,0.91474471,107510.0,107500.0,0.35]
[1756695110829,0.99059209,107510.0,107500.0,0.35]
[1756695112130,0.98979209,107510.0,107500.0,0.35]
[1756695112733,0.96668738,107510.0,107500.0,0.35]
[1756695113142,0.07584738,107510.0,107500.0,0.35]
[1756695113344,0.89072,107510.0,107500.0,0.62754823]
[1756695113538,0.89072,107510.0,107500.0,0.98834823]
[1756695113942,0.89072,107510.0,107500.0,0.7108]
[1756695114142,0.91377511,107510.0,107500.0,0.98834823]
[1756695114342,0.91377499,107510.0,107500.0,0.7108]
[1756695115440,0.91377535,107510.0,107500.0,0.7108]
[1756695115645,0.98853664,107510.0,107500.0,0.7108]
[1756695115845,1.26608487,107510.0,107500.0,0.01]
[1756695116246,1.51608487,107510.0,107500.0,0.01]
[1756695116447,1.87688487,107510.0,107500.0,0.01]
[1756695117940,0.98616487,107510.0,107500.0,0.01]
[1756695118139,1.97872607,107510.0,107500.0,0.37]
[1756695118337,1.97872607,107510.0,107500.0,0.01]
[1756695118643,1.07916607,107510.0,107500.0,0.03]
[1756695118947,1.45073784,107510.0,107500.0,0.39]
[1756695119549,1.72828607,107510.0,107500.0,0.01]
[1756695120944,1.72828607,107510.0,107500.0,0.33]
[1756695121253,0.19081784,107510.0,107500.0,0.33]
[1756695121453,1.08941784,107510.0,107500.0,0.60754823]
[1756695121657,0.19081784,107510.0,107500.0,0.60754823]
[1756695121956,1.08941784,107510.0,107500.0,0.60754823]
[1756695122952,1.430976,107540.0,107500.0,2.76389646]
[1756695122953,0.0494418,107540.0,107500.0,2.76389646]
[1756695123149,0.06576581,107560.0,107530.0,0.99914823]
[1756695123150,0.1314818,107560.0,107530.0,0.99914823]
[1756695123343,0.2244397,107560.0,107550.0,0.63834823]
[1756695123557,0.0929546,107570.0,107550.0,1.70966306]
[1756695123856,0.90048,107570.0,107560.0,0.73130613]
[1756695124050,0.0929493,107570.0,107560.0,0.6708]
[1756695124249,0.0929493,107570.0,107560.0,1.01742852]
[1756695124555,0.0929493,107570.0,107560.0,0.37018424]
[1756695124947,0.0929493,107570.0,107560.0,0.7208]
[1756695125148,0.0929493,107570.0,107560.0,0.6808]
[1756695125450,1.3543455,107580.0,107560.0,1.07957841]
[1756695125652,2.66564,107600.0,107570.0,0.80037662]
[1756695125851,0.4537106,107620.0,107600.0,0.0929229]
[1756695126051,0.1329106,107620.0,107610.0,0.3608]
[1756695126251,1.6938706,107620.0,107610.0,0.3608]
[1756695126457,0.0929143,107610.0,107600.0,0.3608]
[1756695126759,0.0929312,107590.0,107580.0,0.70742852]
[1756695126955,0.9936512,107590.0,107580.0,0.3608]
[1756695127149,0.0929399,107580.0,107570.0,0.70742852]
[1756695127357,0.0929399,107580.0,107570.0,1.05742852]
[1756695127553,0.0929399,107580.0,107570.0,0.95742852]
[1756695127756,0.0929399,107580.0,107570.0,1.27742852]
[1756695127952,0.0929365,107590.0,107570.0,1.37037702]
[1756695128158,0.0929365,107590.0,107580.0,0.70742852]
[1756695128454,0.0929365,107590.0,107580.0,1.01742852]
[1756695128659,0.9937765,107590.0,107580.0,0.95742852]
[1756695129056,0.9937765,107590.0,107580.0,0.70742852]
[1756695129262,0.9937765,107590.0,107580.0,0.3608]
[1756695129560,0.9947765,107590.0,107580.0,0.3608]
[1756695130161,0.0939365,107590.0,107580.0,0.70742852]
[1756695130364,0.9939765,107590.0,107580.0,1.06742852]
[1756695130952,0.9959765,107590.0,107580.0,0.70742852]
[1756695131157,0.9959765,107590.0,107580.0,0.6808]
[1756695131358,0.9959765,107590.0,107580.0,0.3608]
[1756695132659,0.9959765,107590.0,107570.0,0.3608]
[1756695132660,0.0929398,107580.0,107570.0,0.3608]
[1756695132866,0.0929398,107580.0,107570.0,1.06742852]
[1756695133066,0.0929398,107580.0,107570.0,1.41037702]
[1756695133758,0.0949346,107590.0,107580.0,0.0929399]
[1756695133964,0.0929285,107600.0,107590.0,0.0929312]
[1756695134156,0.0929285,107600.0,107590.0,1.17035972]
[1756695134356,0.9924085,107600.0,107590.0,1.17035972]
[1756695135165,0.9924085,107600.0,107590.0,0.8237312]
[1756695135365,0.9924085,107600.0,107590.0,1.17035972]
[1756695135564,0.9964085,107600.0,107590.0,1.17035972]
[1756695135765,0.0969285,107600.0,107590.0,1.17035972]
[1756695135966,0.9958085,107600.0,107590.0,1.17035972]
[1756695136162,0.0969285,107600.0,107590.0,1.17035972]
[1756695136367,0.9956885,107600.0,107590.0,1.17035972]
[1756695136969,0.0989285,107600.0,107590.0,1.17035972]
[1756695137474,0.0989285,107600.0,107590.0,1.02742852]
[1756695138271,0.0929259,107600.0,107590.0,1.02742852]
[1756695138573,0.0929259,107600.0,107590.0,1.12035972]
[1756695139471,0.0929259,107600.0,107590.0,0.70742852]
[1756695139675,0.0929259,107600.0,107590.0,0.80035972]
[1756695140179,0.9902459,107600.0,107590.0,1.12035972]
[1756695140472,0.7,107620.0,107610.0,0.0929139]
[1756695140772,2.32624,107640.0,107610.0,1.17034242]
[1756695140971,2.29787189,107640.0,107630.0,0.34662852]
[1756695141167,2.99787189,107640.0,107630.0,0.34662852]
[1756695141370,0.3608,107660.0,107630.0,1.16032522]
[1756695141568,0.8974,107650.0,107640.0,0.34662852]
[1756695141777,0.9174,107650.0,107630.0,0.80032452]
[1756695141980,0.8974,107650.0,107630.0,0.7008]
[1756695142171,0.8974,107650.0,107630.0,0.3608]
[1756695142370,0.9074,107650.0,107630.0,0.70742852]
[1756695142673,0.9074,107650.0,107630.0,0.3608]
[1756695142868,0.9074,107650.0,107630.0,1.06742852]
[1756695143068,0.9074,107650.0,107630.0,1.07660728]
[1756695143270,0.8974,107650.0,107630.0,1.07660728]
[1756695143466,0.9024,107650.0,107630.0,1.07660728]
[1756695143779,0.9124,107650.0,107630.0,1.07660728]
[1756695144074,0.023,107650.0,107640.0,0.78614504]
[1756695144287,0.0494418,107690.0,107670.0,0.092859]
[1756695144579,0.7,107690.0,107680.0,0.70742852]
[1756695144779,1.66672,107690.0,107670.0,0.70742852]
[1756695144974,1.59672,107690.0,107670.0,0.70742852]
[1756695145183,1.59672,107690.0,107680.0,0.3608]
[1756695145387,1.59672,107690.0,107670.0,0.70742852]
[1756695145576,1.59872,107690.0,107670.0,0.73242852]
[1756695145973,1.64872,107690.0,107670.0,0.73242852]
[1756695146178,1.59872,107690.0,107670.0,0.3858]
[1756695146375,2.91614852,107690.0,107670.0,0.3858]
[1756695146674,2.19534852,107690.0,107670.0,0.3858]
[1756695146872,2.56014852,107690.0,107670.0,0.3858]
[1756695147075,2.56014852,107690.0,107670.0,0.025]
[1756695147281,0.34662852,107680.0,107670.0,0.025]
[1756695147480,0.34662852,107680.0,107670.0,0.3858]
[1756695147781,1.94734852,107690.0,107670.0,0.3608]
[1756695147978,0.896,107680.0,107670.0,0.3608]
[1756695148380,0.004,107690.0,107670.0,0.95742852]
[1756695148575,0.89952,107690.0,107680.0,0.80028202]
[1756695148878,0.8956,107690.0,107680.0,1.07742852]
[1756695149478,2.3248,107720.0,107680.0,1.17028202]
[1756695149685,2.3248,107720.0,107690.0,0.70742852]
[1756695149686,0.89528,107710.0,107690.0,0.70742852]
[1756695149984,0.89512,107700.0,107690.0,1.01742852]
[1756695150183,0.89508,107700.0,107690.0,0.6708]
[1756695151974,0.89708,107700.0,107690.0,0.3608]
[1756695152286,0.91008,107700.0,107690.0,0.3608]
[1756695152787,0.90008,107700.0,107690.0,0.3608]
[1756695153172,0.94255498,107700.0,107690.0,0.3608]
[1756695153779,0.94255498,107700.0,107680.0,0.381082]
[1756695153982,1.6499835,107700.0,107680.0,0.381082]
[1756695154181,1.30335498,107700.0,107680.0,0.381082]
[1756695154576,0.94255498,107700.0,107680.0,1.03771052]
[1756695154781,0.94255498,107700.0,107680.0,0.72771052]
[1756695154980,0.94155498,107700.0,107680.0,1.04771052]
[1756695155182,0.94155498,107700.0,107680.0,0.381082]
[1756695155383,1.26270852,107700.0,107680.0,0.381082]
[1756695155686,1.64798438,107700.0,107680.0,0.020282]
[1756695156382,0.70742852,107690.0,107670.0,0.3608]
[1756695156582,1.25328,107680.0,107670.0,0.31]
[1756695156778,0.89248,107680.0,107670.0,0.31]
[1756695156983,0.89248,107680.0,107660.0,0.38140779]
[1756695157183,0.89248,107680.0,107660.0,0.70140779]
[1756695157378,0.91495318,107680.0,107660.0,0.38140779]
[1756695157581,1.2615817,107680.0,107660.0,0.38140779]
[1756695157782,0.91495318,107680.0,107660.0,0.38140779]
[1756695158085,0.3608,107670.0,107650.0,0.70742852]
[1756695158285,0.89188,107660.0,107650.0,1.06742852]
[1756695159191,0.89188,107660.0,107650.0,0.70742852]
[1756695159488,0.89188,107660.0,107650.0,1.08742852]
[1756695160082,0.89188,107660.0,107650.0,0.001]
[1756695160285,0.91436412,107660.0,107650.0,0.001]
[1756695160481,2.25179264,107660.0,107650.0,0.001]
[1756695160689,2.25143264,107660.0,107650.0,0.004]
[1756695161102,1.87143264,107660.0,107650.0,0.001]
[1756695161285,1.87143264,107660.0,107650.0,0.004]
[1756695161688,0.97991264,107660.0,107650.0,0.001]
[1756695161991,1.95099264,107660.0,107650.0,0.003]
[1756695162183,1.10935444,107660.0,107650.0,0.003]
[1756695162388,2.00043444,107660.0,107650.0,0.002]
[1756695162589,1.183863,107660.0,107650.0,0.002]
[1756695162793,2.324703,107660.0,107650.0,0.002]
[1756695163088,1.97807448,107660.0,107650.0,0.002]
[1756695163288,2.324703,107660.0,107650.0,0.002]
[1756695165089,2.34102701,107660.0,107650.0,0.002]
[1756695165593,1.45018701,107660.0,107650.0,0.002]
[1756695165994,2.34066701,107660.0,107650.0,0.002]
[1756695167096,2.33966701,107660.0,107650.0,0.002]
[1756695167492,2.32312902,107660.0,107650.0,0.002]
[1756695167683,2.32268902,107660.0,107650.0,0.002]
[1756695169793,2.2734612,107660.0,107650.0,0.002]
[1756695170193,2.33922701,107660.0,107650.0,0.002]
[1756695170598,2.2734612,107660.0,107650.0,0.002]
[1756695171297,2.32272086,107660.0,107650.0,0.002]
[1756695171695,2.33922701,107660.0,107650.0,0.002]
[1756695171896,1.44918701,107660.0,107650.0,0.002]
[1756695172095,2.33826701,107660.0,107650.0,0.002]
[1756695172998,2.33790701,107660.0,107650.0,0.002]
[1756695173188,2.33778701,107660.0,107650.0,0.002]
[1756695175398,2.66786693,107660.0,107600.0,0.3608]
[1756695175586,0.34662852,107610.0,107590.0,0.37276168]
[1756695175897,0.88832,107600.0,107590.0,0.37276168]
[1756695176197,0.8882,107600.0,107590.0,0.38202095]
[1756695176793,0.3608,107610.0,107590.0,0.38202095]
[1756695176995,0.88808,107600.0,107590.0,0.63202095]
[1756695177199,0.88808,107600.0,107590.0,0.97864947]
[1756695177400,0.88808,107600.0,107590.0,0.38202095]
[1756695177997,0.88808,107600.0,107590.0,0.38702095]
[1756695178198,0.88784,107600.0,107590.0,0.38702095]
[1756695178400,0.88784,107600.0,107590.0,0.39002095]
[1756695178691,0.88784,107600.0,107590.0,0.01996168]
[1756695178892,1.23446852,107600.0,107590.0,0.01996168]
[1756695179094,1.59526852,107600.0,107590.0,0.01996168]
[1756695179586,0.70742852,107600.0,107590.0,0.01996168]
[1756695179786,1.24912,107600.0,107590.0,0.01996168]
[1756695180100,1.27160863,107600.0,107590.0,0.01996168]
[1756695180487,0.02248863,107600.0,107590.0,0.6259678]
[1756695180692,0.88816,107600.0,107590.0,0.6165902]
[1756695180896,0.88816,107600.0,107590.0,0.26996168]
[1756695181093,0.02249091,107600.0,107590.0,0.26996168]
[1756695181293,0.91069091,107600.0,107590.0,0.26996168]
[1756695181597,1.61811943,107600.0,107590.0,0.008]
[1756695181897,1.69197825,107600.0,107590.0,0.008]
[1756695182395,2.07197825,107600.0,107590.0,0.008]
[1756695182591,2.41860677,107600.0,107590.0,0.008]
[1756695182799,0.80377825,107600.0,107590.0,0.008]
[1756695182998,1.69161825,107600.0,107590.0,0.008]
[1756695183302,2.05161825,107600.0,107590.0,0.008]
[1756695183496,1.69161825,107600.0,107590.0,0.008]
[1756695183700,1.69137825,107600.0,107590.0,0.008]
[1756695184003,1.34466973,107600.0,107590.0,0.008]
[1756695184205,1.34466973,107600.0,107590.0,0.004]
[1756695184398,1.69129825,107600.0,107590.0,0.004]
[1756695185003,1.69129825,107600.0,107590.0,0.254]
[1756695185301,1.70129825,107600.0,107590.0,0.251]
[1756695185504,1.35466973,107600.0,107590.0,0.251]
[1756695185694,1.70129825,107600.0,107590.0,0.251]
[1756695186000,0.46714973,107600.0,107590.0,0.251]
[1756695186301,1.34422973,107600.0,107590.0,0.251]
[1756695186697,1.36422973,107600.0,107590.0,0.251]
[1756695186902,0.11634973,107600.0,107590.0,0.251]
[1756695187095,0.04249091,107600.0,107590.0,0.251]
[1756695187301,0.90941091,107600.0,107590.0,0.6118]
[1756695187502,1.21941091,107600.0,107590.0,0.6118]
[1756695187701,0.25249091,107600.0,107590.0,0.6118]
[1756695187899,0.88728,107600.0,107590.0,0.6118]
[1756695188097,1.23390852,107600.0,107590.0,0.6118]
[1756695188303,1.25646864,107600.0,107590.0,0.251]
[1756695188499,0.36918864,107600.0,107590.0,0.251]
[1756695188700,0.88736,107600.0,107590.0,0.251]
[1756695189003,0.70742852,107610.0,107590.0,0.6118]
[1756695189204,0.88752,107600.0,107590.0,0.3618]
[1756695189404,0.91008102,107600.0,107590.0,0.3618]
[1756695189905,0.91008102,107600.0,107590.0,0.7418]
[1756695190206,0.91000102,107600.0,107590.0,0.95842852]
[1756695190398,0.91000102,107600.0,107590.0,0.6118]
[1756695190901,1.25662954,107600.0,107590.0,0.001]
[1756695191704,1.31662954,107600.0,107590.0,0.001]
[1756695192400,1.31662954,107600.0,107590.0,0.3618]
[1756695192607,1.31662954,107600.0,107590.0,0.001]
[1756695193407,0.97000102,107600.0,107590.0,0.001]
[1756695195107,0.96892102,107600.0,107590.0,0.3618]
[1756695196212,0.96892102,107600.0,107590.0,0.001]
[1756695196605,0.96832102,107600.0,107590.0,0.001]
[1756695197612,0.08256102,107600.0,107590.0,0.001]
[1756695197909,0.96840102,107600.0,107590.0,0.7018]
[1756695198212,0.96840102,107600.0,107590.0,0.3618]
[1756695199117,0.08256102,107600.0,107590.0,0.3618]
[1756695199323,0.96804102,107600.0,107590.0,0.3618]
[1756695199622,0.90804102,107600.0,107590.0,0.3618]
[1756695199822,0.02256102,107600.0,107590.0,0.6918]
[1756695200026,0.88492,107600.0,107590.0,0.3618]
[1756695200221,0.90748102,107600.0,107590.0,0.3618]
[1756695201619,0.02256102,107600.0,107590.0,0.95842852]
[1756695201920,0.8842,107600.0,107590.0,1.33842852]
[1756695202119,1.25338954,107600.0,107590.0,0.001]
[1756695202424,2.5900334,107600.0,107590.0,0.001]
[1756695202624,2.60658387,107600.0,107590.0,0.001]
[1756695202816,2.25995535,107600.0,107590.0,0.001]
[1756695203223,2.33568726,107600.0,107590.0,0.001]
[1756695204126,2.08568726,107600.0,107590.0,0.001]
[1756695204326,2.08652726,107600.0,107590.0,0.001]
[1756695204821,1.20148726,107600.0,107590.0,0.001]
[1756695205129,1.39343414,107600.0,107590.0,0.001]
[1756695205327,0.50863414,107600.0,107590.0,0.001]
[1756695205521,1.31778223,107600.0,107590.0,0.001]
[1756695206023,1.66441075,107600.0,107590.0,0.001]
[1756695206226,1.71441075,107600.0,107590.0,0.001]
[1756695207023,2.00441075,107600.0,107590.0,0.001]
[1756695207220,2.02063535,107600.0,107590.0,0.001]
[1756695207621,1.67468683,107600.0,107590.0,0.001]
[1756695207818,1.74982421,107600.0,107590.0,0.001]
[1756695208025,1.65846071,107600.0,107590.0,0.001]
[1756695208421,0.41210071,107600.0,107590.0,0.001]
[1756695208622,0.41210071,107600.0,107590.0,0.331]
[1756695208824,0.96754071,107600.0,107590.0,0.001]
[1756695209328,1.67496923,107600.0,107590.0,0.001]
[1756695210124,2.02496923,107600.0,107590.0,0.001]
[1756695210731,1.66416923,107600.0,107590.0,0.001]
[1756695210929,1.31754071,107600.0,107590.0,0.001]
[1756695211130,1.26800102,107600.0,107590.0,0.001]
[1756695211325,1.31754071,107600.0,107590.0,0.001]
[1756695211723,0.43210071,107600.0,107590.0,0.001]
[1756695211927,1.31678071,107600.0,107590.0,0.001]
[1756695212131,1.26724102,107600.0,107590.0,0.001]
[1756695212529,1.26724102,107600.0,107590.0,0.331]
[1756695212726,1.26724102,107600.0,107590.0,0.001]
[1756695213122,0.02256102,107600.0,107590.0,0.321]
[1756695213324,0.8838,107600.0,107590.0,0.97932748]
[1756695213631,0.90636102,107600.0,107590.0,0.27189896]
[1756695213928,0.90636102,107600.0,107590.0,0.63269896]
[1756695214724,0.90636102,107600.0,107590.0,0.97932748]
[1756695214725,0.90608102,107600.0,107590.0,0.97932748]
[1756695214920,0.02256102,107600.0,107590.0,0.97932748]
[1756695215122,0.88352,107600.0,107590.0,0.97932748]
[1756695215328,0.90608102,107600.0,107590.0,0.97932748]
[1756695215732,0.90608102,107600.0,107590.0,1.31932748]
[1756695216127,0.02256102,107600.0,107590.0,1.31932748]
[1756695216334,0.90592102,107600.0,107590.0,1.31932748]
[1756695216728,0.02256102,107600.0,107590.0,1.41225868]
[1756695216928,0.88336,107600.0,107590.0,1.41225868]
[1756695217232,0.88336,107600.0,107590.0,1.31932748]
[1756695217929,0.88336,107600.0,107590.0,0.97932748]
[1756695218130,0.88336,107600.0,107590.0,1.30932748]
[1756695219837,0.88336,107600.0,107590.0,1.28932748]
[1756695220129,0.88336,107600.0,107590.0,1.38225868]
[1756695220438,0.88336,107600.0,107590.0,1.28932748]
[1756695221430,1.96328,107620.0,107590.0,1.38225428]
[1756695221629,1.98592777,107620.0,107610.0,0.70742852]
[1756695221830,2.84656,107620.0,107610.0,1.01742852]
[1756695222033,2.84656,107620.0,107610.0,1.03831886]
[1756695222635,2.84656,107620.0,107610.0,0.72831886]
[1756695223439,2.84856,107620.0,107610.0,0.72831886]
[1756695224637,2.89856,107620.0,107610.0,0.72831886]
[1756695224939,2.89856,107620.0,107610.0,0.38169034]
[1756695225239,2.90056,107620.0,107610.0,0.72831886]
[1756695227645,2.90056,107620.0,107610.0,0.38169034]
[1756695228142,3.24718852,107620.0,107600.0,0.3608]
[1756695228438,3.10056,107620.0,107600.0,0.3608]
[1756695228643,3.10056,107620.0,107600.0,0.6708]
[1756695230138,3.09956,107620.0,107600.0,0.6708]
[1756695230744,3.09756,107620.0,107600.0,0.3608]
[1756695230946,3.09856,107620.0,107600.0,0.3608]
[1756695231146,3.09856,107620.0,107600.0,0.7108]
[1756695231748,3.09856,107620.0,107600.0,0.3808]
[1756695231937,3.09856,107620.0,107600.0,0.6808]
[1756695232253,3.09856,107620.0,107600.0,0.3608]
[1756695232846,3.09856,107620.0,107600.0,0.7308]
[1756695234053,3.3757281,107620.0,107600.0,1.0079681]
[1756695234547,3.3757281,107620.0,107600.0,0.3608]
[1756695234854,3.3757281,107620.0,107600.0,0.9579681]
[1756695235751,2.21528,107620.0,107610.0,0.3608]
[1756695236050,2.84828,107620.0,107610.0,1.03855537]
[1756695237245,2.84928,107620.0,107610.0,1.03855537]
[1756695237454,2.85028,107620.0,107610.0,1.03855537]
[1756695237761,1.96728,107620.0,107610.0,1.03855537]
[1756695238052,2.85028,107620.0,107610.0,1.03855537]
[1756695238249,2.85028,107620.0,107610.0,0.65855537]
[1756695238455,2.85028,107620.0,107610.0,0.38138727]
[1756695239456,3.1274481,107620.0,107610.0,0.02058727]
[1756695239952,2.85028,107620.0,107610.0,0.02058727]
[1756695240757,3.21108,107620.0,107610.0,0.02058727]
[1756695240959,3.27108,107620.0,107610.0,0.02058727]
[1756695241456,1.5849681,107620.0,107610.0,0.02058727]
[1756695242557,1.4641681,107620.0,107610.0,0.02058727]
[1756695242750,1.8249681,107620.0,107610.0,0.02058727]
[1756695243155,1.187,107620.0,107610.0,0.02058727]
[1756695243350,0.60382901,107620.0,107610.0,0.02058727]
[1756695243557,1.20954091,107620.0,107610.0,0.02058727]
[1756695243964,1.20954091,107620.0,107610.0,0.38138727]
[1756695244160,1.18688,107620.0,107610.0,0.65855537]
[1756695244358,0.304,107620.0,107610.0,0.96855537]
[1756695244660,1.18688,107620.0,107610.0,0.96855537]
[1756695244854,0.304,107620.0,107610.0,1.21855537]
[1756695245058,0.88684,107620.0,107610.0,1.21855537]
[1756695246157,0.02667081,107620.0,107610.0,1.58863747]
[1756695246353,0.88684,107620.0,107610.0,1.58863747]
[1756695246562,0.004,107620.0,107610.0,1.66176857]
[1756695246764,0.004,107620.0,107610.0,2.47147747]
[1756695246962,0.0866,107640.0,107630.0,0.0928908]
[1756695247168,0.8828,107650.0,107630.0,1.4416589]
[1756695247470,0.8828,107650.0,107640.0,0.6379681]
[1756695247669,0.9328,107650.0,107640.0,0.9779681]
[1756695247868,0.8828,107650.0,107640.0,1.2551362]
[1756695248068,0.8928,107650.0,107640.0,1.04690812]
[1756695248368,0.8928,107650.0,107640.0,1.05638305]
[1756695248961,0.8928,107650.0,107640.0,1.05738305]
[1756695249970,0.8928,107650.0,107640.0,1.06038305]
[1756695251070,0.8928,107650.0,107640.0,1.13401379]
[1756695251273,0.8828,107650.0,107640.0,0.78790567]
[1756695251469,0.8828,107650.0,107640.0,1.13401379]
[1756695251865,0.9928,107650.0,107640.0,1.13401379]
[1756695252175,0.9928,107650.0,107640.0,0.79401379]
[1756695252568,0.9928,107650.0,107640.0,1.11401379]
[1756695253467,0.8828,107650.0,107640.0,1.04038305]
[1756695254672,0.8828,107650.0,107640.0,0.37427493]
[1756695254871,0.8928,107650.0,107640.0,0.72038305]
[1756695255175,0.01,107650.0,107640.0,1.17327205]
[1756695255371,0.88248,107650.0,107640.0,1.17327205]
[1756695255775,0.88248,107650.0,107640.0,1.42327205]
[1756695255974,0.88248,107650.0,107640.0,1.49597412]
[1756695257275,0.88248,107650.0,107640.0,1.149866]
[1756695257471,0.88248,107650.0,107640.0,1.49597412]
[1756695258977,0.88248,107650.0,107640.0,1.84208224]
[1756695259478,0.88248,107650.0,107640.0,1.49597412]
[1756695259776,1.9636,107680.0,107660.0,0.0928693]
[1756695259970,1.9636,107680.0,107670.0,0.79977122]
[1756695259971,2.84592,107680.0,107670.0,0.79977122]
[1756695260166,0.3608,107690.0,107670.0,1.15977122]
[1756695260371,0.38342733,107690.0,107680.0,0.34610812]
[1756695260568,0.3608,107700.0,107680.0,0.79976222]
[1756695260769,0.88228,107690.0,107680.0,0.70690812]
[1756695260972,0.88228,107690.0,107680.0,0.79976262]
[1756695261479,1.0608,107710.0,107680.0,0.79976262]
[1756695261681,0.88224,107700.0,107690.0,0.70690812]
[1756695262277,0.94224,107700.0,107690.0,0.70690812]
[1756695262669,1.18224,107700.0,107690.0,0.70690812]
[1756695263283,1.18524,107700.0,107690.0,0.70690812]
[1756695264084,0.88824,107700.0,107690.0,0.70690812]